Cogmind - Beta 15 @@@ ROGUE MODE // 2025.08.28 @ 23:57:36 Player: Peregrine Result: Destroyed by S-10 Pest with Light Assault Rifle Performance ------------- Evolutions (0) 0 Regions Visited (1) 200 Robots Destroyed (10) 50 Value Destroyed (197) 197 Prototype IDs (2) 40 Alien Tech Used (0) 0 Bonus (0) 0 TOTAL SCORE: 487 Bonus ------- None Cogmind --------- Core Integrity 0/250 Matter 265/300 Energy 125/125 System Corruption 0% Temperature Cool (6) Movement Walking (680) Ox8 Location -10/Materials Parts ------- > --- POWER (1) -------- Light Ion Engine > --- PROPULSION (2) --- Aluminum Leg > --- UTILITY (2) ------ Huge Storage Unit > --- WEAPON (2) ------- (None) > --- INVENTORY (25) --- Light Ion Engine Medium Matter Pod (7) Peak State ------------ > --- POWER ------------ Light Ion Engine > --- PROPULSION ------- Aluminum Leg Aluminum Leg > --- UTILITY ---------- Small Storage Unit > --- WEAPON ----------- EM Pulse Gun Medium Laser > --- INVENTORY -------- Light Ion Engine Light Treads Wheel Wheel Assault Rifle [Rating: 6] Favorites ----------- Power Light Ion Engine Engine Light Ion Engine Propulsion Aluminum Leg Leg Aluminum Leg Wheel Wheel Utility Huge Storage Unit Storage Huge Storage Unit Weapon Medium Laser Energy Gun Medium Laser Ballistic Gun Assault Rifle Build | -11 -10 ------- Run | Yrd Mat Slots Evolved . | . . Power . | . . Propulsion . | . . Utility . | . . Weapon . | . . Parts Attached 8 | . 8 Power 1 | . 1 Engine 1 | . 1 Core . | . . Reactor . | . . Propulsion 4 | . 4 Treads . | . . Leg 2 | . 2 Wheel 2 | . 2 Hover . | . . Flight . | . . Utility 1 | . 1 Device . | . . Storage 1 | . 1 Processor . | . . Hackware . | . . Protection . | . . Artifact . | . . Weapon 2 | . 2 Energy Gun 1 | . 1 Energy Cannon . | . . Ballistic Gun 1 | . 1 Ballistic Cannon . | . . Launcher . | . . Special Weapon . | . . Impact Weapon . | . . Slashing Weapon . | . . Piercing Weapon . | . . Special Melee Weapon . | . . Unidentified Prototypes . | . . Parts Lost 7 | . 7 Power 1 | . 1 Propulsion 3 | . 3 Utility . | . . Weapon 3 | . 3 Highest Loss Streak 5 | . 5 To Critical Strikes . | . . Average Backups 5 | . 5 Power 1 | . 1 Propulsion 1 | . 1 Utility . | . . Weapon . | . . Tool/Special . | . . Unused Backups 7 | . 7 Power 2 | . 2 Propulsion 2 | . 2 Utility 2 | . 2 Weapon 1 | . 1 Tool/Special . | . . Average Slot Usage (%) 76 | . 76 Engine 11 | . 11 Leg 12 | . 12 Wheel 11 | . 11 Storage 14 | . 14 Energy Gun 14 | . 14 Ballistic Gun 12 | . 12 Peak Build Rating 6 | . 6 Average Rating 5 | . 5 On Entrance 6 | 6 6 Naked Turns . | . . Heaviest Build 87 | 12 87 Greatest Support 20 | 20 20 Greatest Overweight (x) 8 | . 8 Average Overweight (x) 2 | . 2 Largest Inventory Capacity 25 | . 25 Average Capacity 18 | . 18 Most Carried 7 | . 7 Average Carried 5 | . 5 Final Capacity 25 | 8 25 Final Carried 6 | 6 2 Class Distribution -------------------- 100% | Mutant Dominant Class ---------------- Mutant | -10/Materials Resources | -11 -10 ----------- Run | Yrd Mat Matter Collected 307 | 182 125 Remotely . | . . Salvage Created 255 | . 255 Parts 16 | . 16 Haulers Intercepted . | . . Recyclers Shooed 1 | . 1 Parts Field Recycled . | . . Retrieved Matter . | . . Parts Self-Destructed . | . . Prevented . | . . Kills | -11 -10 ------- Run | Yrd Mat Combat Hostiles Destroyed 8 | . 8 Guns 8 | . 8 Classes Destroyed 4 | . 4 Operator 1 | . 1 Watcher 1 | . 1 Swarmer 5 | . 5 Grunt 3 | . 3 Best Kill Streak 3 | . 3 Combat Bots Only 3 | . 3 Max Kills in Single Turn 1 | . 1 Gunslinging . | . . Exploded . | . . Melee . | . . Uniques/NPCs Destroyed . | . . Combat | -11 -10 -------- Run | Yrd Mat Hostile Shots Fired 107 | . 107 Missed 26 | . 26 Hits 81 | . 81 Projectile 81 | . 81 Damage Taken 825 | . 825 Core 252 | . 252 Absorbed by Shields . | . . Core Remaining (%) 100 | 100 . Volleys Fired 33 | . 33 Largest 2 | . 2 Hottest 90 | . 90 Shots Fired 64 | . 64 Gun 64 | . 64 Cannon . | . . Launcher . | . . Special . | . . Kinetic 30 | . 30 Thermal 31 | . 31 Explosive . | . . Electromagnetic 3 | . 3 Robot Hit Streak 6 | . 6 Robot Miss Streak 5 | . 5 Penetration Max . | . . Secondary Targets 1 | . 1 Max Gunslinging Chain 1 | . 1 Shots Hit Robots 39 | . 39 Core Hits 15 | . 15 Critical Kills . | . . Critical Parts Destroyed 1 | . 1 Critical Strikes 2 | . 2 Burn 1 | . 1 Destroy 1 | . 1 Melee Attacks . | . . Impact . | . . Slashing . | . . Piercing . | . . Sneak Attacks . | . . Combat Hostiles . | . . Follow-up Attacks . | . . Damage Inflicted 503 | . 503 Guns 503 | . 503 Cannons . | . . Explosions . | . . Melee . | . . Ramming . | . . Kinetic 242 | . 242 Thermal 224 | . 224 Explosive . | . . Electromagnetic 37 | . 37 Impact . | . . Slashing . | . . Piercing . | . . Highest Corruption . | . . Average Corruption . | . . Corruption Purged . | . . Corruption Blocked . | . . Overload Shots . | . . Overflow Damage . | . . Projectiles . | . . Explosions . | . . Melee . | . . Knockbacks . | . . Impact . | . . Kinetic . | . . Secondary . | . . Self-Inflicted Damage . | . . Shots . | . . Rammed . | . . Targets Rammed . | . . Kicked . | . . Crushed . | . . Highest Temperature 96 | . 96 Average Temperature 26 | . 26 Received Heat Transfer 354 | . 354 Siege Activations . | . . Martial Activations . | . . Shielding Activations . | . . Robots Disrupted . | . . Combat Hostiles . | . . Robots Corrupted . | . . Combat Hostiles . | . . Parts Fried . | . . Impact Corruptions . | . . Robots Melted . | . . Combat Hostiles . | . . Parts Melted . | . . Heat Transferred 740 | . 740 Parts Sabotaged . | . . Parts Stolen . | . . Parts Stripped . | . . Power Chain Reactions . | . . Alert | -11 -10 ------- Run | Yrd Mat Maximum Alert Level . | . . Low Security (%) 100 | . 100 Level 1 . | . . Level 2 . | . . Level 3 . | . . Level 4 . | . . Level 5 . | . . High Security . | . . Max Security . | . . Peak Influence 75 | . 75 Initial . | . . Average 32 | . 32 Influence Increases 228 | . 228 Destroy 0b10 Robot/C 160 | . 160 Destroy 0b10 Robot/NC 10 | . 10 Destroy Leader 22 | . 22 Successful Hack 6 | . 6 Lose Combat Pursuer 30 | . 30 Influence Decreases 210 | . 210 Time Decay 140 | . 140 Lost Part 70 | . 70 Squads Dispatched 2 | . 2 Investigation 1 | . 1 Extermination . | . . Reinforcement 1 | . 1 Assault . | . . Garrison . | . . Intercept . | . . Searches Triggered . | . . Construction Impeded . | . . Haulers Reinforced . | . . Active Scanning Responses . | . . Cargo Convoy Interrupts . | . . Stealth | -11 -10 --------- Run | Yrd Mat Distress Signals 3 | . 3 Communications Jammed . | . . Distress Signals . | . . Times Spotted 19 | . 19 Peak Tracking Total 7 | . 7 Tactical Retreats 2 | . 2 Traps | -11 -10 ------- Run | Yrd Mat Traps Triggered 1 | . 1 Indirectly . | . . Trap Hack Attempts . | . . Triggered . | . . Disarmed . | . . Reprogrammed . | . . Reused . | . . Traps Extracted . | . . Installed . | . . Triggered . | . . Machines | -11 -10 ---------- Run | Yrd Mat Machines Disabled . | . . Max in Single Turn . | . . Machines Repaired . | . . Machines Dismantled . | . . Machines Sabotaged . | . . Overloaded Fab Kills . | . . Hacking | -11 -10 --------- Run | Yrd Mat Machines Accessed 3 | . 3 Terminals 2 | . 2 Fabricators . | . . Repair Stations 1 | . 1 Recycling Units . | . . Scanalyzers . | . . Garrison Access . | . . Total Hacks 7 | . 7 Successful 2 | . 2 Failed 4 | . 4 Catastrophic 2 | . 2 Database Lockouts 1 | . 1 Manual 5 | . 5 Terminals 6 | . 6 Fabricators . | . . Repair Stations 1 | . 1 Recycling Units . | . . Scanalyzers . | . . Garrison Access . | . . Terminal Hacks 2 | . 2 Robot Analysis 1 | . 1 Prototype ID Bank 1 | . 1 Fabricator Hacks . | . . Repair Station Hacks . | . . Recycling Unit Hacks . | . . Scanalyzer . | . . Garrison Access Hacks . | . . Unauthorized Hacks . | . . Terminals . | . . Fabricators . | . . Repair Stations . | . . Recycling Units . | . . Scanalyzers . | . . Garrison Access . | . . Data Cores Recovered . | . . Used . | . . Hacking Detections 2 | . 2 Full Trace Events . | . . Feedback Events . | . . Feedback Blocked . | . . Robot Schematics Acquired . | . . Robots Built . | . . Authchips . | . . Time . | . . Total Robot Build Rating . | . . Part Schematics Acquired . | . . Parts Built . | . . Authchips . | . . Time . | . . Total Part Build Rating . | . . Parts Repaired . | . . Time . | . . Parts Recycled . | . . Recycled Matter . | . . Retrieved Matter . | . . Retrieved Components . | . . Parts Scanalyzed . | . . Part Schematics Acquired . | . . Parts Damaged . | . . Bothacking | -11 -10 ------------ Run | Yrd Mat Used RIF Installer . | . . Robots Hacked . | . . Non-combat . | . . Combat . | . . Robot Hacks Applied . | . . Relay Couplers Released . | . . Fabnet Peak Effective % . | . . Robots Rewired . | . . Allies Hacked . | . . Hacks Repelled . | . . Allies | -11 -10 -------- Run | Yrd Mat Total Allies . | . . Largest Group . | . . Highest-Rated Group . | . . Highest-Rated Ally . | . . Total Orders . | . . Ally Attacks . | . . Total Damage . | . . Kills . | . . Allies Corrupted . | . . Allies Melted . | . . Intel | -11 -10 ------- Run | Yrd Mat Active Infowar (turns) . | . . Robot Analysis Total 1 | . 1 Derelict Logs Recovered . | . . Drone Launches . | . . Drone Recoveries . | . . Exploration | -11 -10 ------------- Run | Yrd Mat Turns Passed 347 | . 347 Spaces Moved 163 | 1 162 Core . | . . Treads . | . . Legs 94 | 1 93 Wheels 69 | . 69 Hover . | . . Flight . | . . Fastest Speed 120 | 120 120 Average Speed 141 | 120 141 Slowest Speed 400 | 120 400 Overloaded Moves . | . . Propulsion Burnouts . | . . Robots Hopped . | . . Potential Cave-ins . | . . Cave-ins Triggered . | . . Exploration Rate (%) 18 | 2 34 Regions Visited 1 Branch Regions . Pre-discovered Areas . | . . Known Exits Taken . | . . Unknown Exits Taken 1 | 1 . Scrap Searched . | . . Spaces Dug . | . . Terrain Destroyed . | . . Melee . | . . Projectile . | . . AOE . | . . Terrain Rammed . | . . Walls Destroyed . | . . Machines Disabled . | . . Actions | -11 -10 --------- Run | Yrd Mat Total 216 | . 216 Wait 7 | . 7 Move 162 | . 162 Hop . | . . Pick Up 3 | . 3 Fast Attach . | . . Attach 4 | . 4 Detach . | . . Swap 4 | . 4 Drop 3 | . 3 Fire 33 | . 33 Melee . | . . Ram . | . . Kick . | . . Crush . | . . Escape Stasis . | . . Rewire . | . . Trap . | . . Miscellaneous . | . . Route ------- -11/Scrapyard -10/Materials History --------- Turn | Location | Event 1 | -11/Scrapyard | Discovered new exit (range 0) 1 | -11/Scrapyard | Entered Materials 113 | -10/Materials | Central database locked down 308 | -10/Materials | Build established: Mutant 322 | -10/Materials | Core integrity fell below 50% 337 | -10/Materials | Core integrity fell below 20% 348 | -10/Materials | Destroyed by S-10 Pest with Light Assault Rifle Last Messages --------------- 00316_ S-10 Pest destroyed. 00317_ Wheel destroyed. 00317_ T-07 Excavator is excavating. 00318_ W-16 Scout sends out distress signal. 00321_ R-06 Scavenger collects Lgt. Ion Engine. 00324_ Assault Rifle destroyed. 00325_ U-05 Engineer lays Concrete. 00326_ S-10 Pest destroyed. 00326_ Switching to secondary target: G-34 Mercenary. 00328_ Med. Laser destroyed. 00332_ R-06 Scavenger collects Flight Unit. 00335_ EM Pulse Gun destroyed. 00337_ U-05 Engineer lays Concrete. 00342_ G-34 Mercenary misfires. 00342_ R-06 Scavenger collects Flight Unit. 00345_ U-05 Engineer lays Concrete. 00345_ R-06 Scavenger collects Lgt. Assault Rifle. 00346_ Aluminum Leg destroyed. 00346_ U-05 Engineer lays Concrete. 00348_ K-01 Serf collects debris. Map ----- +----------------------------------------------------+ | | | | | | | | | | | | | | | | | | | | | | | | | ?????????????????????????????????????????????????? | | ?????????????????????????????????????????????????? | | ?????????????????????????????????????????????????? | | ?????????????????????????????????????????????????? | | ?????????????????????????????????????????????????? | | ?????????????????????????????????????????????????? | | ?????????????????????????????????????????????????? | | ?????????????????????????????????????????????????? | | ?????????????????????????????????????????????????? | | ?????????????????????????????????????????????????? | | ?????????????????????????????????????????????????? | | ????????????????????????????????????????? ? ?????? | | ???????????? #####+################? ==?????? | | ?????????????# rg@ """ # =??????? | | ?????????????# * sg g "T" + ????????? | | ?????????????# u gr #??????????? | | ?????????????#########k###### #??????????? | | ???????????????# % # #########??? | | ?????????????????? """ # # #??? | | ??????????????????s """ +% # T #??? | | ????????????????? """ "T" # """ # #??? | | ????????????????r """ # """ + #??? | | ???????????????############## """ # #??? | | ????????????????????????????# # [ #??? | | ??????????????????????? # ########??? | | ??????????????????????# # #??? | | ??????????????????????# # #??? | | ??????????????????????# # #??? | | ??????????????????????? ######## / [ #??? | | ???????????????????????# #???????# # #??? | | ???????????????????????????????????# # #??? | | ???????????????????????????????????# ########??? | | ????????????????????????????######## #?????????? | | ????????????????????????????# # ########??? | | ????????????????????????????# """ # # #??? | | ????????????????????????????#! """ / / #??? | | ????????????????????????????# """ # # """ #??? | | ????????????????????????????# # # """ #??? | +----------------------------------------------------+ Best States ------------- Heat Dissipation 25 Energy Generation 10 Energy Capacity 125 Matter Stores 300 Matter Capacity 300 Sight Range 16 Terrain Scan Density 10 Evasion (%) 55 Item Schematics ----------------- None Robot Schematics ------------------ None Fabricated ------------ Nothing Repaired ---------- Nothing Alien Tech Used ----------------- None Achievements -------------- None Challenges ------------ None Game ------ Seed WeldingWarlordCompressor Manual? 0 Play Time 00:06:46 Cumulative 131.1 hours Start 2025.08.28 @ 23:51:51 End 2025.08.28 @ 23:57:36 Sessions 1 Manual Loads 0 Difficulty Rogue Special Mode None Game No. 160 Rogue 145 Adventurer 15 Explorer 0 Win Type - Total 5 Types 3/0/2/0/0/0/0/0/0/0 Lore% 41 Gallery% 64 Achievement% 59 Wizard Run 0 Options --------- Layout 0 ASCII 0 Keyboard 0 Movement Mouse Keybinds 0 Fullscreen 2 Font 36/Smallcaps Map View 76x50 Zoom Use 0% Tactical HUD 1 Map Filters NONE Filters NONE Steam 1 RUN: 8c312941-d5c4-4fff-8b1e-449ee9dc19ac